fUSD/lending_fUSD_20241022
["ID","MTS","AMOUNT","RATE_DAILY","PERIOD"]
[340662381,1729615842628,-2130.74418737,0.00011,2]
[340662382,1729615842640,-4445.23740939,0.00011,2]
[340662383,1729615842652,-605.70812265,0.00011,2]
[340662384,1729615842663,-355.1560507,0.00011,2]
[340662385,1729615842678,-263.2950011,0.00011,2]
[340662386,1729615842689,-1973.28541823,0.00011,2]
[340662387,1729615842700,-305.20127118,0.00011,2]
[340662388,1729615842712,-432.89653833,0.00011,2]
[340662389,1729615842723,-1117.28317245,0.00011,2]
[340662390,1729615842735,-4200.0,0.00011,2]
[340662391,1729615842746,-607.00378439,0.00011,2]
[340662392,1729615842757,-1060.26480912,0.00011,2]
[340662393,1729615842768,-438.49481,0.00011,2]
[340662394,1729615842780,-310.0354285,0.00011,2]
[340662395,1729615842792,-2005.80185951,0.00011,2]
[340662396,1729615842804,-1023.82317081,0.00011,2]
[340662397,1729615842815,-505.5664408,0.00011,2]
[340662398,1729615842827,-17363.33012065,0.00011,2]
[340662399,1729615842839,-534.95016412,0.00011,2]
[340662400,1729615842850,-1668.72494686,0.00011,2]
[340662401,1729615842861,-2754.31674355,0.00011,2]
[340662402,1729615842872,-412.1753019,0.00011,2]
[340662403,1729615842884,-909.01723778,0.00011,2]
[340662404,1729615842906,-471.44131326,0.00011,2]
[340662405,1729615842953,-1167370.32242596,0.00011,2]
[340662406,1729615842962,-81426.64562813,0.00011,2]
[340662407,1729615842972,-757588.07989278,0.00011,2]
[340662408,1729615842983,-363.33683964,0.00011,2]
[340662409,1729615842994,-621.05409892,0.00011,2]
[340662410,1729615843006,-636.87818,0.00011,2]
[340662411,1729615843017,-19099.49823801,0.00011,2]
[340662412,1729615843028,-671.32315737,0.00011,2]
[340662413,1729615843042,-485.29999995,0.00011,2]
[340662414,1729615843053,-709.17,0.00011,2]
[340662431,1729615845758,-542.79318473,0.00011,2]
[340662432,1729615845770,-335.50565863,0.00011,2]
[340662433,1729615845781,-2836.89857251,0.00011,2]
[340662434,1729615845793,-8843.92475302,0.00011,2]
[340662435,1729615845805,-4296.75088854,0.00011,2]
[340662436,1729615845816,-3213.00530478,0.00011,2]
[340662437,1729615845827,-93832.35615864,0.00011,2]
[340662438,1729615845839,-69307.81672762,0.00011,2]
[340662439,1729615845851,-40531.55046532,0.00011,2]
[340662440,1729615845863,-5771.89169257,0.00011,2]
[340662441,1729615845874,-32525.2270776,0.00011,2]
[340662443,1729615845884,-5942.42976688,0.00011,2]
[340662446,1729615845896,-455.24153839,0.00011,2]
[340662448,1729615845907,-189480.98509995,0.00011,2]
[340662450,1729615845918,-3627.57220054,0.00011,2]
[340662451,1729615845929,-1079.82624402,0.00011,2]
[340662453,1729615845940,-1161.32595796,0.00011,2]
[340662454,1729615845951,-2775.23190365,0.00011,2]
[340662455,1729615845962,-299.07844765,0.00011,2]
[340662456,1729615845974,-17061.62315174,0.00011,2]
[340662457,1729615845985,-405.8537147,0.00011,2]
[340662458,1729615845996,-14215.85805118,0.00011,2]
[340662459,1729615846012,-422.91126348,0.00011,2]
[340662460,1729615846024,-547.44,0.00011,2]
[340662461,1729615846040,-820.20907842,0.00011,2]
[340662462,1729615846062,-430.72220257,0.00011,2]
[340662463,1729615846074,-1207.9555414,0.00011,2]
[340662464,1729615846088,-1033.35696431,0.00011,2]
[340662465,1729615846307,-1217.64466643,0.00011,2]
[340662466,1729615846319,-4506.63722945,0.00011,2]
[340662467,1729615846330,-1375.91963111,0.00011,2]
[340662468,1729615846341,-1626.60634085,0.00011,2]
[340662469,1729615846352,-16344.51668327,0.00011,2]
[340662470,1729615846365,-3065.96675403,0.00011,2]
[340662471,1729615846375,-1089.88117537,0.00011,2]
[340662472,1729615846387,-544.14569313,0.00011,2]
[340662473,1729615846398,-2600.60967681,0.00011,2]
[340662474,1729615846409,-319.0,0.00011,2]
[340662475,1729615846421,-1675.74849414,0.00011,2]
[340662476,1729615846432,-351542.77415981,0.00011,2]
[340662477,1729615846444,-679790.84198374,0.00011,2]
[340662478,1729615846454,-2372.81520537,0.00011,2]
[340662479,1729615846465,-357.56409185,0.00011,2]
[340662480,1729615846483,-268.25,0.00011,2]
[340662481,1729615846494,-519.8684483,0.00011,2]
[340662482,1729615846504,-858.99079704,0.00011,2]
[340662483,1729615846515,-1744.32203037,0.00011,2]
[340662484,1729615846526,-417.95823573,0.00011,2]
[340662485,1729615846539,-572.08599567,0.00011,2]
[340662486,1729615846555,-5210.14308199,0.00011,2]
[340662487,1729615846566,-442.82396974,0.00011,2]
[340662488,1729615846577,-9834.19473332,0.00011,2]
[340662489,1729615846588,-2701.23101814,0.00011,2]
[340662490,1729615846599,-5164.28147376,0.00011,2]
[340662491,1729615846609,-2034.76206701,0.00011,2]
[340662492,1729615846621,-8694.57112734,0.00011,2]
[340662493,1729615846633,-1041.98334023,0.00011,2]
[340662494,1729615992821,321.8,8.912e-05,2]
[340662495,1729616001480,-150.0,0.00010727,2]
[340662496,1729616001505,-150.0,0.0001073,2]
[340662497,1729616001532,-150.0,0.00010733,2]
[340662498,1729616001557,-150.0,0.00010739,2]
[340662499,1729616001583,-150.0,0.00010745,2]
[340662500,1729616001611,-150.0,0.00010765,2]
[340662501,1729616001637,-150.0,0.00010766,2]
[340662502,1729616001662,-150.0,0.0001077,2]
[340662503,1729616001687,-150.0,0.00010774,2]
[340662504,1729616001712,-150.0,0.00010787,2]
[340662505,1729616001738,-150.0,0.00010791,2]
[340662506,1729616001764,-150.0,0.00010803,2]
[340662507,1729616001790,-150.0,0.00010811,2]
[340662508,1729616001815,-150.0,0.00010812,2]
[340662509,1729616001839,-150.0,0.00010814,2]
[340662510,1729616001864,-150.0,0.00010818,2]
[340662511,1729616001888,-150.0,0.00010819,2]
[340662512,1729616001912,-150.0,0.00010822,2]
[340662513,1729616001940,-150.0,0.00010822,2]
[340662514,1729616001964,-150.0,0.00010823,2]
[340662515,1729616001987,-150.0,0.00010828,2]
[340662516,1729616002011,-150.0,0.0001083,2]
[340662517,1729616002037,-150.0,0.00010834,2]
[340662518,1729616002063,-150.0,0.00010837,2]
[340662519,1729616002091,-150.0,0.00010847,2]
[340662520,1729616002114,-150.0,0.00010847,2]
[340662521,1729616002138,-250.0,0.0001086,2]
[340662522,1729616002166,-150.0,0.00010888,2]
[340662523,1729616002191,-13445.41352184,0.000109,2]
[340662524,1729616002218,-150.0,0.00010901,2]
[340662525,1729616002245,-150.0,0.00010903,2]
[340662526,1729616002275,-150.0,0.00010905,2]
[340662527,1729616002304,-150.0,0.0001092,2]
[340662528,1729616002329,-150.0,0.00010921,2]
[340662529,1729616002357,-150.0,0.00010921,2]
[340662530,1729616002382,-150.0,0.00010934,2]
[340662531,1729616002407,-150.0,0.00010934,2]
[340662532,1729616002434,-150.0,0.00010936,2]
[340662533,1729616002459,-150.0,0.00010947,2]
[340662534,1729616002483,-150.0,0.0001095,2]
[340662535,1729616002507,-150.0,0.0001095,2]
[340662536,1729616002531,-150.0,0.00010968,2]
[340662537,1729616002554,-150.0,0.00010968,2]
[340662538,1729616002578,-150.0,0.00010973,2]
[340662539,1729616002602,-150.0,0.00010974,2]
[340662540,1729616002626,-150.0,0.00010987,2]
[340662541,1729616002650,-150.0,0.00010995,2]
[340662542,1729616002674,-150.0,0.00010996,2]
[340662543,1729616002697,-150.0,0.00010999,2]
[340662544,1729616002720,-183.83002997,0.00010999,2]
[340662545,1729616002746,-29070.75644819,0.00011,2]
[340662546,1729616007777,-150.0,0.00010737,2]
[340662547,1729616007802,-150.0,0.00010902,2]
[340662548,1729616007826,-150.0,0.00010941,2]
[340662549,1729616007850,-150.0,0.00010992,2]
[340662550,1729616007879,-49400.0,0.00011,2]
[340662551,1729616008526,-150.0,0.00010752,2]
[340662552,1729616008551,-150.0,0.00010759,2]
[340662553,1729616008575,-150.0,0.00010801,2]
[340662554,1729616008599,-150.0,0.00010855,2]
[340662555,1729616008624,-150.0,0.00010878,2]
[340662556,1729616008654,-150.0,0.00010909,2]
[340662557,1729616008680,-150.0,0.00010912,2]
[340662558,1729616008705,-150.0,0.00010919,2]
[340662559,1729616008734,-150.0,0.0001097,2]
[340662560,1729616008760,-150.0,0.00010984,2]
[340662561,1729616008787,-48500.0,0.00011,2]
[340662562,1729616009496,-50000.0,0.00011,2]
[340662563,1729616010506,-50000.0,0.00011,2]
[340662564,1729616013254,-50000.0,0.00011,2]
[340662565,1729616014468,-50000.0,0.00011,2]
[340662566,1729616015475,-150.0,0.00010767,2]
[340662567,1729616015504,-150.0,0.00010984,2]
[340662568,1729616015534,-49700.0,0.00011,2]
[340662569,1729616016636,-150.0,0.00010784,2]
[340662570,1729616016788,-150.0,0.00010803,2]
[340662571,1729616016814,-150.0,0.00010829,2]
[340662572,1729616016839,-150.0,0.00010848,2]
[340662573,1729616016864,-150.0,0.000109,2]
[340662574,1729616016890,-150.0,0.00010938,2]
[340662575,1729616016915,-150.0,0.0001096,2]
[340662576,1729616016943,-150.0,0.00010988,2]
[340662577,1729616016967,-150.0,0.00010993,2]
[340662578,1729616016994,-48650.0,0.00011,2]
[340662579,1729616018004,-50000.0,0.00011,2]
[340662580,1729616118146,840.0,0.0001,2]
[340662582,1729616291935,250.0,0.0001,2]
[340662583,1729616307157,156.35,9.973e-05,2]
[340662584,1729616441621,150.0,0.000125,3]
[340662585,1729616500333,250.0,9.973e-05,2]
[340662586,1729616578602,-191.695208,0.0001071,2]
[340662587,1729616578628,-150.0,0.00010764,2]
[340662588,1729616578653,-150.0,0.00010765,2]
[340662589,1729616578677,-150.0,0.0001077,2]
[340662590,1729616578703,-150.0,0.00010772,2]
[340662591,1729616578728,-150.0,0.00010783,2]
[340662592,1729616578753,-150.0,0.00010787,2]
[340662593,1729616578777,-150.0,0.00010804,2]
[340662594,1729616578801,-150.0,0.00010806,2]
[340662595,1729616578824,-499.99,0.00010806,2]
[340662596,1729616578847,-1514.16,0.00010806,2]
[340662597,1729616578869,-570.64,0.00010806,2]
[340662598,1729616578893,-286.09,0.00010806,2]
[340662599,1729616578918,-150.0,0.00010825,2]
[340662600,1729616578942,-2044.59,0.00010825,2]
[340662601,1729616578966,-10695.68,0.00010825,2]
[340662602,1729616578989,-150.99,0.00010825,2]
[340662603,1729616579014,-150.0,0.00010869,2]
[340662604,1729616579039,-150.0,0.00010876,2]
[340662605,1729616579066,-150.0,0.00010878,2]
[340662606,1729616579094,-178.5,0.00010884,2]
[340662607,1729616579119,-250.0,0.00010884,2]
[340662608,1729616579146,-150.0,0.0001089,2]
[340662609,1729616579170,-292.7514,0.000109,2]
[340662610,1729616579195,-1021.9164,0.000109,2]
[340662611,1729616579221,-1562.9325,0.000109,2]
[340662612,1729616579245,-12581.85352346,0.000109,2]
[340662613,1729616579270,-292.60387832,0.000109,2]
[340662614,1729616579298,-6136.5659,0.000109,2]
[340662615,1729616579325,-150.0,0.0001091,2]
[340662616,1729616579349,-150.0,0.00010931,2]
[340662617,1729616579375,-1000.0,0.00010945,2]
[340662618,1729616579398,-1000.0,0.00010945,2]
[340662619,1729616579424,-1147.9529,0.00010945,2]
[340662620,1729616579450,-250.0,0.00010959,2]
[340662621,1729616579477,-170.22,0.00010959,2]
[340662622,1729616579501,-752.67,0.00010959,2]
[340662623,1729616579526,-150.0,0.00010961,2]
[340662624,1729616579551,-293.931,0.00010971,2]
[340662625,1729616579575,-150.0,0.00010987,2]
[340662626,1729616579600,-150.0,0.00010989,2]
[340662627,1729616579624,-150.0,0.00010993,2]
[340662628,1729616579649,-150.0,0.00010993,2]
[340662629,1729616579672,-4114.26729022,0.00010997,2]
[340662630,1729616579810,-5501.63466528,0.00010997,2]
[340662631,1729616579833,-521.204977,0.00010997,2]
[340662632,1729616579855,-3145.3546935,0.00010997,2]
[340662633,1729616579879,-204.46414518,0.00010999,2]
[340662634,1729616579902,-213.31672979,0.00010999,2]
[340662635,1729616579926,-500.0,0.00010999,2]
[340662636,1729616579954,-500.0,0.00010999,2]
[340662637,1729616579978,-500.0,0.00010999,2]
[340662638,1729616580002,-500.0,0.00010999,2]
[340662639,1729616580026,-339.92831018,0.00010999,2]
[340662640,1729616580163,-38074.09647907,0.00011,2]
[340662641,1729616580241,-50000.0,0.00011,2]
[340662642,1729616580722,-50000.0,0.00011,2]
[340662643,1729616581221,-50000.0,0.00011,2]
[340662644,1729616581778,-300.0,0.00010805,2]
[340662645,1729616581810,-49700.0,0.00011,2]
[340662646,1729616582364,-50000.0,0.00011,2]
[340662647,1729616583359,-50000.0,0.00011,2]
[340662648,1729616584191,-50000.0,0.00011,2]
[340662649,1729616584867,-50000.0,0.00011,2]
[340662650,1729616734552,-168.669139,0.00010845,2]
[340662651,1729616734572,-232.8001047,0.000109,2]
[340662652,1729616752095,-355.3231953,0.000109,2]
[340662653,1729616752116,-300.0,0.00010996,2]
[340662654,1729616752139,-499.52756815,0.00010997,2]
[340662672,1729617031725,-300.0,0.00010998,2]
[340662673,1729617031734,-204.46414517,0.00010999,2]
[340662674,1729617031744,-259.99203447,0.00010999,2]
[340662675,1729617031753,-4294.53825133,0.00011,2]
[340662676,1729617031782,-495.72833055,0.00011,2]
[340662677,1729617031793,-32405.2578489,0.00011,2]
[340662678,1729617031804,-2423.06599062,0.00011,2]
[340662679,1729617031814,-6178.9825058,0.00011,2]
[340662680,1729617031826,-8606.23695535,0.00011,2]
[340662681,1729617031841,-662.53242,0.00011,2]
[340662682,1729617031852,-1160.73125044,0.00011,2]
[340662683,1729617031863,-412179.83959628,0.00011,2]
[340662684,1729617031872,-2000.0,0.00011,2]
[340662685,1729617031881,-200.0,0.00011,2]
[340662686,1729617031890,-13541.0,0.00011,2]
[340662687,1729617031899,-5889.0,0.00011,2]
[340662688,1729617031908,-152.808,0.00011,2]
[340662689,1729617031917,-1151.0,0.00011,2]
[340662690,1729617031926,-2480.688129,0.00011015,2]
[340662691,1729617031935,-408.993902,0.00011023,2]
[340662692,1729617031944,-7545.6786397,0.00011023,2]
[340662693,1729617031953,-178.7488535,0.00011038,2]
[340662694,1729617031962,-321.0,0.0001106,2]
[340662695,1729617031972,-2031.68,0.00011094,2]
[340662696,1729617031981,-293.89,0.00011094,2]
[340662697,1729617031990,-2031.68,0.00011097,2]
[340662698,1729617031999,-2031.68,0.000111,2]
[340662699,1729617032008,-2031.68,0.00011103,2]
[340662700,1729617032018,-2031.68,0.00011106,2]
[340662701,1729617032027,-2031.68,0.00011109,2]
[340662702,1729617032036,-2000.0,0.0001111,2]
[340662703,1729617032045,-200.0,0.0001111,2]
[340662704,1729617032055,-2031.68,0.00011112,2]
[340662705,1729617032064,-2031.68,0.00011114,2]
[340662706,1729617032073,-2031.68,0.00011117,2]
[340662707,1729617032082,-2031.68,0.0001112,2]
[340662708,1729617032092,-2031.68,0.00011123,2]
[340662709,1729617032101,-2031.68,0.00011126,2]
[340662710,1729617032110,-2031.68,0.00011129,2]
[340662711,1729617032120,-2031.68,0.00011132,2]
[340662712,1729617032129,-2031.68,0.00011135,2]
[340662713,1729617032138,-2031.68,0.00011138,2]
[340662714,1729617032147,-2031.68,0.00011141,2]
[340662715,1729617032158,-2031.68,0.00011144,2]
[340662716,1729617032167,-2031.68,0.00011147,2]
[340662717,1729617032177,-2031.68,0.0001115,2]
[340662718,1729617032187,-1000.0,0.000112,2]
[340662719,1729617032196,-2000.0,0.00011221,2]
[340662720,1729617032207,-200.0,0.00011221,2]
[340662721,1729617032217,-840.0,0.0001125,2]
[340662722,1729617032227,-150.222,0.0001128,2]
[340662723,1729617032238,-150.0,0.0001128,2]
[340662724,1729617032247,-151.266,0.0001128,2]
[340662725,1729617032256,-150.0,0.0001128,2]
[340662726,1729617032265,-168.843,0.0001128,2]
[340662727,1729617032274,-560.0,0.0001128,2]
[340662728,1729617032283,-812.0,0.0001128,2]
[340662729,1729617032292,-1245.0,0.0001128,2]
[340662730,1729617032302,-450.0,0.0001128,2]
[340662731,1729617032311,-560.322,0.0001128,2]
[340662732,1729617032320,-936.0,0.0001128,2]
[340662733,1729617032329,-3360.0,0.0001128,2]
[340662734,1729617032338,-1910.0,0.0001128,2]
[340662735,1729617032347,-810.0,0.0001128,2]
[340662736,1729617032356,-409.50542711,0.00011316,2]
[340662737,1729617032366,-2000.0,0.00011333,2]
[340662738,1729617032377,-200.0,0.00011333,2]
[340662739,1729617032386,-300.0,0.00012,2]
[340662740,1729617032396,-253.94,0.000121,2]
[340662741,1729617032406,-599.24565817,0.0001238,2]
[340662742,1729617032416,-167.0,0.00012445,2]
[340662743,1729617032426,-167.68,0.00012445,2]
[340662744,1729617032436,-150.0,0.0001249,2]
[340662745,1729617032445,-840.0,0.000125,2]
[340662746,1729617032454,-953.5235,0.000125,2]
[340662747,1729617032465,-305.71,0.00013108,2]
[340662748,1729617032474,-170.22,0.00013151,2]
[340662749,1729617032484,-840.0,0.0001375,2]
[340662750,1729617032494,-350.0,0.00014,2]
[340662751,1729617032503,-150.0,0.00014,2]
[340662752,1729617032512,-179.33,0.00014,2]
[340662753,1729617032521,-150.0,0.0001428,2]
[340662754,1729617032530,-150.0,0.0001428,2]
[340662755,1729617032539,-224.564,0.0001428,2]
[340662756,1729617032548,-685.514,0.0001428,2]
[340662757,1729617032557,-332.362,0.0001428,2]
[340662758,1729617032568,-500.00418917,0.00014362,2]
[340662759,1729617032579,-167.68,0.00014499,2]
[340662760,1729617032588,-547.55691924,0.000145,2]
[340662761,1729617032598,-328.0,0.00014624,2]
[340662762,1729617032609,-172.49,0.00014624,2]
[340662763,1729617032619,-174.52,0.00014624,2]
[340662764,1729617032628,-2000.0,0.00014955,2]
[340662765,1729617032637,-156.35,0.0001496,2]
[340662766,1729617032646,-250.0,0.0001497,2]
[340662767,1729617032655,-840.0,0.00015,2]
[340662768,1729617032665,-405.68160625,0.00015,2]
[340662769,1729617032674,-1238.0,0.00015,2]
[340662770,1729617032684,-187.0,0.00015,2]
[340662771,1729617032694,-500.0,0.00015092,2]
[340662772,1729617032703,-150.12,0.00015342,2]
[340662773,1729617032712,-164.18,0.00015342,2]
[340662774,1729617032722,-160.46,0.00015342,2]
[340662775,1729617032732,-153.4,0.00015342,2]
[340662776,1729617032741,-153.4,0.00015342,2]
[340662777,1729617032750,-305.71,0.00015372,2]
[340662778,1729617032759,-8511.69212628,0.000159,2]
[340662779,1729617032768,-400.0,0.00016,2]
[340662780,1729617032777,-172.49,0.00016086,2]
[340662781,1729617032786,-150.41,0.0001615,2]
[340662782,1729617032796,-150.38,0.00016438,2]
[340662783,1729617032805,-328.0,0.00016452,2]
[340662784,1729617032815,-155.06,0.00016712,2]
[340662785,1729617032824,-150.0,0.00017,2]
[340662786,1729617032833,-172.49,0.00017548,2]
[340662787,1729617032845,-150.38,0.00017613,2]
[340662788,1729617032855,-305.71,0.00017636,2]
[340662789,1729617032864,-450.0,0.00018,2]
[340662790,1729617032873,-180.0,0.00018082,2]
[340662791,1729617032882,-328.0,0.0001828,2]
[340662792,1729617032890,-761.83,0.000186,7]
[340662793,1729617032899,-150.38,0.00018787,2]
[340662794,1729617032908,-161.8,0.00019178,2]
[340662795,1729617032917,-305.71,0.000199,2]
[340662796,1729617032927,-150.38,0.00019961,2]
[340662797,1729617032936,-500.0,0.0002,2]
[340662798,1729617032945,-811.700719,0.0002,2]
[340662799,1729617032954,-159.28,0.0002,2]
[340662800,1729617032963,-328.0,0.00020108,2]
[340662801,1729617032972,-150.38,0.00021135,2]
[340662802,1729617032982,-2500.0,0.00021917,2]
[340662803,1729617032991,-2500.0,0.00021917,2]
[340662804,1729617033001,-2130.32955473,0.00021917,2]
[340662805,1729617033011,-1193.10063735,0.00021917,2]
[340662806,1729617033020,-158.19,0.00021918,2]
[340662807,1729617033029,-328.0,0.00021935,2]
[340662808,1729617033039,-30905.00949455,0.00022,5]
[340662809,1729617033049,-550.0,0.00022,2]
[340662810,1729617033058,-305.71,0.00022163,2]
[340662811,1729617033068,-150.38,0.00022309,2]
[340662812,1729617033078,-150.0,0.00023,2]
[340662813,1729617033087,-181.16422658,0.000233,2]
[340662814,1729617033100,-150.38,0.00023483,2]
[340662815,1729617033110,-634.86,0.000237,14]
[340662816,1729617033119,-1000.0,0.00024,5]
[340662817,1729617033129,-600.0,0.00024,2]
[340662818,1729617033139,-305.71,0.00024427,2]
[340662819,1729617033149,-870.75762694,0.00024598,2]
[340662820,1729617033158,-375.0,0.00024657,2]
[340662821,1729617033167,-150.38,0.00024658,2]
[340662822,1729617033177,-150.12,0.000247,2]
[340662823,1729617033186,-150.99,0.00024877,30]
[340662824,1729617033196,-195.06925222,0.000249,2]
[340662825,1729617033205,-155.0,0.00025,10]
[340662826,1729617033215,-3230.56756495,0.00025,60]
[340662827,1729617033225,-2889.0661646,0.00025,2]
[340662828,1729617033235,-3936.44709577,0.00025,2]
[340662829,1729617033245,-65436.23470595,0.00025,14]
[340662830,1729617033256,-27454.3956157,0.00025,7]
[340662831,1729617033265,-328.1113055,0.00025,2]
[340662832,1729617033274,-38500.0,0.00025,2]
[340662833,1729617033284,-9604.26786615,0.00025,60]
[340662834,1729617033293,-161.0,0.00025,2]
[340662835,1729617033303,-650.0,0.00026,2]
[340662836,1729617033313,-305.71,0.00026691,2]
[340662837,1729617033323,-750.0,0.00027397,2]
[340662838,1729617033332,-1000.0,0.00027397,7]
[340662839,1729617033342,-700.0,0.00028,2]
[340662840,1729617033351,-262.81187157,0.00028,30]
[340662841,1729617033361,-802.44125185,0.00028,30]
[340662842,1729617033370,-841.91149596,0.00028,30]
[340662843,1729617033380,-800.0,0.00028,30]
[340662844,1729617033390,-749.07009482,0.00028,30]
[340662845,1729617033399,-254.93,0.00028345,2]
[340662846,1729617033408,-160.46,0.00028858,2]
[340662847,1729617033418,-305.71,0.00028955,2]
[340662848,1729617033427,-150.99,0.00028968,30]
[340662849,1729617033436,-500.0,0.00029589,2]
[340662850,1729617033446,-1192.25150206,0.0003,2]
[340662851,1729617033456,-346.7797624,0.0003,2]
[340662852,1729617033466,-750.0,0.0003,2]
[340662853,1729617033476,-1125.0,0.00030136,2]
[340662854,1729617033485,-153.4,0.00030548,2]
[340662855,1729617033494,-153.4,0.00030548,2]
[340662856,1729617033504,-305.71,0.00031219,2]
[340662857,1729617033513,-800.0,0.00032,2]
[340662858,1729617033523,-1500.0,0.00032876,2]
[340662859,1729617033532,-150.0,0.00032876,30]
[340662860,1729617033542,-300.0,0.00032876,30]
[340662861,1729617033551,-558.72394073,0.00032876,30]
[340662862,1729617033560,-3000.0,0.00032876,120]
[340662863,1729617033571,-2129.53672954,0.00032876,120]
[340662864,1729617033582,-209.55559464,0.00032877,2]
[340662865,1729617033593,-150.99,0.00033059,120]
[340662866,1729617033602,-305.71,0.00033483,2]
[340662867,1729617033611,-636.21,0.000335,31]
[340662868,1729617033620,-636.21,0.000335,31]
[340662869,1729617033631,-636.21,0.000335,31]
[340662870,1729617033640,-636.21,0.000335,31]
[340662871,1729617033652,-636.21,0.000335,31]
[340662872,1729617033662,-636.21,0.000335,31]
[340662873,1729617033671,-636.21,0.000335,31]
[340662874,1729617033681,-636.21,0.000335,31]
[340662875,1729617033691,-636.21,0.000335,31]
[340662876,1729617033700,-636.21,0.000335,31]
[340662877,1729617033710,-636.21,0.000335,31]
[340662878,1729617033719,-636.21,0.000335,31]
[340662879,1729617033729,-6020.0,0.00034,120]
[340662880,1729617033738,-850.0,0.00034,2]
[340662881,1729617033748,-150.12,0.00034057,2]
[340662882,1729617033758,-195.06925221,0.0003434,8]
[340662883,1729617033767,-150.0,0.00034548,10]
[340662884,1729617033776,-1234.0,0.00034849,120]
[340662885,1729617033786,-506.26,0.00035031,2]
[340662886,1729617033795,-429.37,0.00035031,2]
[340662887,1729617033805,-424.6,0.00035031,2]
[340662888,1729617033814,-424.6,0.00035031,2]
[340662889,1729617033823,-1875.0,0.00035616,2]
[340662890,1729617033833,-293.932,0.00035728,43]
[340662891,1729617033846,-305.71,0.00035747,2]
[340662892,1729617033855,-507.88,0.000366,30]
[340662893,1729617033865,-156.51243921,0.00036822,2]
[340662894,1729617033874,-9904.90657896,0.00037,30]
[340662895,1729617033884,-150.99,0.00037151,120]
[340662896,1729617033893,-250.27280382,0.00038,10]
[340662897,1729617033903,-305.71,0.00038011,2]
[340662898,1729617033912,-3201.96504207,0.0003818,2]
[340662899,1729617033922,-756.92253918,0.00038356,2]
[340662900,1729617033931,-867.4403443,0.000385,120]
[340662901,1729617033940,-219.02914312,0.00038795,7]
[340662902,1729617033950,-609.69804553,0.000389,30]
[340662903,1729617033959,-10772.41787604,0.00039,2]
[340662904,1729617033969,-636.21,0.000397,31]
[340662905,1729617033978,-636.21,0.000397,31]
[340662906,1729617033988,-636.21,0.000397,31]
[340662907,1729617033997,-636.21,0.000397,31]
[340662908,1729617034006,-636.21,0.000397,31]
[340662909,1729617034016,-636.21,0.000397,31]
[340662910,1729617034025,-636.21,0.000397,31]
[340662911,1729617034035,-636.21,0.000397,31]
[340662912,1729617034044,-636.21,0.000397,31]
[340662913,1729617034053,-636.21,0.000397,31]
[340662914,1729617034063,-636.21,0.000397,31]
[340662915,1729617034072,-636.21,0.000397,31]
[340662916,1729617034082,-636.21,0.000397,31]
[340662917,1729617034092,-636.21,0.000397,31]
[340662918,1729617034102,-636.21,0.000397,31]
[340662919,1729617034112,-636.21,0.000397,31]
[340662920,1729617034121,-636.21,0.000397,31]